bitfinex/quotes_ETHUSD_20220227
["timestamp","ask_amount","ask_price","bid_price","bid_amount"]
[1645927680570,11.6294,2703.7,2703.2,0.9252447]
[1645927680770,12.7773,2703.7,2703.2,0.9252447]
[1645927680972,1.0,2703.6,2703.2,0.9252447]
[1645927681172,0.15293479,2703.7,2703.2,0.9252447]
[1645927681373,0.3,2703.6,2703.2,1.8503947]
[1645927681574,0.3,2703.6,2703.2,0.9252447]
[1645927681775,0.00529402,2703.5,2703.2,0.9252447]
[1645927682576,0.2872,2703.8,2703.2,0.9252447]
[1645927682777,1.72110976,2704.2,2703.4,1.8501882]
[1645927683130,0.00529082,2703.5,2703.4,1.8501882]
[1645927683712,1.02115869,2704.1,2703.4,1.8501882]
[1645927683913,1.0,2704.1,2703.4,1.8501882]
[1645927684116,0.00529079,2703.6,2703.4,1.8501882]
[1645927684822,0.00529079,2703.6,2703.4,2.1501882]
[1645927685018,0.02115935,2704.1,2703.4,2.1501882]
[1645927685219,0.72110976,2704.2,2703.4,2.18451904]
[1645927685419,0.00529077,2703.6,2703.4,2.18451904]
[1645927686224,1.14190014,2704.1,2703.4,0.03433084]
[1645927686420,0.00529149,2703.6,2703.4,0.03433084]
[1645927686866,0.00529149,2703.6,2703.4,0.95943244]
[1645927687463,0.00295595,2704.1,2703.4,0.95943244]
[1645927687663,0.00444856,2703.6,2703.4,0.95943244]
[1645927688667,1.72406571,2704.2,2703.4,0.95943244]
[1645927688867,0.00444856,2703.6,2703.4,0.95943244]
[1645927689674,0.00444856,2703.6,2703.4,1.25943244]
[1645927689873,1.72406571,2704.2,2703.4,1.25943244]
[1645927690073,0.0054836,2703.6,2703.4,1.25943244]
[1645927690471,0.0054836,2703.6,2703.4,1.62883244]
[1645927690713,0.02193088,2704.1,2703.6,0.92485]
[1645927690915,0.00295595,2704.3,2703.7,0.9247864]
[1645927691211,14.7988,2704.5,2703.7,0.9247864]
[1645927691425,0.00295595,2704.4,2703.7,0.9247864]
[1645927691612,14.7988,2704.5,2703.7,0.9247864]
[1645927692217,0.00295595,2704.7,2703.7,3.1437764]
[1645927692412,0.00444643,2704.2,2704.0,0.9248199]
[1645927693427,2.48755595,2704.8,2704.0,0.9248199]
[1645927693622,2.18755595,2704.8,2704.1,0.46152]
[1645927693822,2.18755595,2704.8,2704.2,3.63819997]
[1645927693823,0.01778305,2704.6,2704.2,3.63819997]
[1645927694021,0.01778305,2704.6,2704.2,0.50759997]
[1645927694220,0.01778305,2704.6,2704.2,1.50759997]
[1645927694461,0.01778305,2704.6,2704.2,0.13819997]
[1645927694765,0.1479,2705.3,2704.4,0.9247171]
[1645927694963,0.1479,2705.3,2704.4,1.8493971]
[1645927695161,0.1479,2705.3,2704.4,0.9247171]
[1645927695363,0.22075469,2705.4,2704.4,1.2247171]
[1645927695563,0.00295595,2705.4,2704.4,0.9247171]
[1645927695763,1.19041668,2705.1,2704.4,0.9247171]
[1645927695967,1.19041668,2705.1,2704.4,1.2247171]
[1645927696167,0.00295595,2705.4,2704.4,1.2247171]
[1645927696664,0.00295595,2705.4,2704.8,0.9246617]
[1645927696864,11.9294,2705.5,2704.3,1.8494342]
[1645927697064,11.78005595,2705.4,2704.3,1.8494342]
[1645927697270,0.00443901,2705.2,2704.3,1.8494342]
[1645927697467,0.1477,2705.1,2704.3,1.8494342]
[1645927697968,0.15065595,2705.1,2704.3,1.8494342]
[1645927698251,0.00295595,2705.1,2704.3,1.8494342]
[1645927698447,0.52005595,2705.2,2704.3,1.8494342]
[1645927698647,0.00549062,2704.8,2704.3,1.8494342]
[1645927699350,1.54201515,2705.2,2704.3,1.8494342]
[1645927699551,1.54201515,2705.2,2704.3,1.3861342]
[1645927699552,1.40799592,2704.7,2704.3,1.3861342]
[1645927699750,1.4132658,2704.7,2704.3,1.3861342]
[1645927700352,0.00526988,2704.7,2704.3,1.3861342]
[1645927700552,0.00295595,2705.0,2704.3,1.3861342]
[1645927700754,1.0,2705.1,2704.3,1.3861342]
[1645927700755,1.30295595,2705.1,2704.3,1.3861342]
[1645927700955,0.0052699,2704.6,2704.3,1.3861342]
[1645927701754,1.28350907,2704.8,2704.3,1.3861342]
[1645927702166,0.00526991,2704.6,2704.3,1.3861342]
[1645927702972,1.28350907,2704.8,2704.3,1.3861342]
[1645927703373,0.00526991,2704.6,2704.3,1.3861342]
[1645927704172,0.00295595,2704.9,2704.3,1.3861342]
[1645927704377,11.6294,2704.9,2704.3,1.3861342]
[1645927704575,0.00530376,2704.6,2703.9,1.8498194]
[1645927704776,1.20810402,2704.2,2703.9,1.8498194]
[1645927705377,0.00295595,2704.6,2703.9,1.8498194]
[1645927705631,1.37235595,2704.7,2704.5,0.03375807]
[1645927705926,1.87939073,2704.7,2704.5,0.03375807]
[1645927706528,3.00782138,2704.7,2704.5,0.03375807]
[1645927706730,14.24660994,2704.7,2704.5,0.03375807]
[1645927706927,14.25191365,2704.7,2704.5,0.03375807]
[1645927707533,0.1477,2704.6,2704.5,0.03375807]
[1645927707933,1.3694,2704.6,2704.5,0.03375807]
[1645927708230,0.0163,2704.5,2703.5,1.8501013]
[1645927708445,12.3103,2704.4,2703.4,0.00286217]
[1645927708630,11.6294,2704.0,2703.4,0.00286217]
[1645927708831,11.6294,2703.8,2703.4,0.00286217]
[1645927709031,13.6294,2703.8,2703.4,0.00286217]
[1645927709232,2.4479,2703.8,2703.4,0.00286217]
[1645927709469,2.41401737,2703.8,2703.4,0.00286217]
[1645927710277,2.41401737,2703.8,2703.3,0.9252071]
[1645927710468,2.41401737,2703.8,2703.4,0.00286217]
[1645927711669,2.16401737,2703.8,2703.4,0.00286534]
[1645927711970,1.0,2703.9,2703.4,0.00286534]
[1645927712174,1.0,2703.9,2703.5,0.925065]
[1645927712369,1.0,2703.9,2703.5,0.875065]
[1645927712973,1.0,2703.9,2703.4,1.85301374]
[1645927713217,1.0,2703.9,2703.4,0.00286534]
[1645927713819,1.0,2703.9,2702.6,0.25]
[1645927713820,13.36254345,2703.9,2702.6,0.25]
[1645927714019,11.6294,2703.7,2702.6,0.25]
[1645927714220,1.2024,2703.7,2703.4,0.00286534]
[1645927714720,1.04097333,2703.6,2703.0,0.9253168]
[1645927715621,1.04097333,2703.6,2703.5,0.03345541]
[1645927715820,11.56,2703.7,2703.0,0.9253168]
[1645927716021,11.56,2703.7,2702.6,0.25]
[1645927716022,0.3694,2703.2,2702.6,0.25]
[1645927716221,0.8024,2703.2,2702.3,0.9255419]
[1645927716420,0.833,2703.2,2702.3,0.9255419]
[1645927716623,1.04204937,2703.2,2702.3,0.9255419]
[1645927717079,1.07908079,2702.9,2702.3,0.9255419]
[1645927717667,1.07908079,2702.9,2702.3,0.4628419]
[1645927718867,1.07908079,2702.9,2702.5,0.00350137]
[1645927719068,0.97908079,2702.9,2702.5,0.00350137]
[1645927719269,1.34848079,2702.9,2702.5,0.00350137]
[1645927719871,0.97908079,2702.9,2702.3,0.4628419]
[1645927720073,0.97908079,2702.9,2702.6,0.00276571]
[1645927720714,0.97908079,2702.9,2702.3,0.00290761]
[1645927720912,1.0,2703.0,2702.3,0.00290761]
[1645927722218,1.0,2703.0,2702.5,0.3694]
[1645927722417,1.2087,2703.4,2703.0,1.66794768]
[1645927722619,2.0,2703.6,2703.0,1.66794768]
[1645927722620,3.0,2703.6,2703.0,1.66794768]
[1645927723017,1.33124564,2703.5,2703.0,1.66794768]
[1645927723716,1.33124564,2703.5,2703.0,3.51833128]
[1645927725171,3.0,2703.6,2703.0,3.51833128]
[1645927727380,0.21565315,2703.7,2703.1,3.8694]
[1645927727381,0.00549068,2703.7,2703.1,3.8694]
[1645927727581,0.00549068,2703.7,2703.1,3.144264]
[1645927727777,0.00549068,2703.7,2703.2,0.3]
[1645927728530,0.00549093,2703.7,2703.2,1.2249547]
[1645927728925,0.00549093,2703.7,2703.2,1.3728547]
[1645927729126,0.00549093,2703.7,2703.2,0.9249547]
[1645927729524,0.00295595,2703.9,2703.2,0.9249547]
[1645927729525,1.25777548,2703.6,2703.2,0.9249547]
[1645927729923,0.00519072,2703.7,2703.2,0.9249547]
[1645927730523,0.00519072,2703.7,2703.2,1.8500747]
[1645927730721,0.00295595,2703.9,2703.2,1.8500747]
[1645927730924,1.16240079,2703.9,2703.2,1.8500747]
[1645927731126,0.00519072,2703.7,2703.2,1.8500747]
[1645927731326,0.00519072,2703.7,2703.2,0.9249547]
[1645927731729,0.00519072,2703.7,2703.2,1.8500747]
[1645927731958,0.00295595,2703.9,2703.2,1.8500747]
[1645927732160,0.00519072,2703.7,2703.2,1.8500747]
[1645927733159,0.50184355,2703.9,2703.2,0.9249547]
[1645927733563,0.00549093,2703.7,2703.2,0.9249547]
[1645927734364,0.50184355,2703.9,2703.2,0.9249547]
[1645927734764,0.00549093,2703.7,2703.3,1.56353065]
[1645927735265,0.00549093,2703.7,2703.2,0.9249547]
[1645927735465,0.87124355,2703.9,2703.3,1.56352415]
[1645927735723,0.87124355,2703.9,2703.2,0.9249547]
[1645927735929,0.00549101,2703.7,2703.3,1.56355087]
[1645927736333,1.040501,2703.5,2703.0,1.66794768]
[1645927736628,0.00549101,2703.7,2703.1,2.48890493]
[1645927736829,0.00549101,2703.7,2703.1,0.9252796]
[1645927737128,0.0054906,2703.7,2703.1,0.9252796]
[1645927738028,3.28387681,2703.9,2703.1,0.9252796]
[1645927738229,0.00549084,2703.7,2703.1,0.9252796]
[1645927739130,14.54387681,2703.9,2703.1,0.9252796]
[1645927739367,0.00549084,2703.7,2703.1,0.9252796]
[1645927740167,0.00549084,2703.7,2703.2,1.56360655]
[1645927740367,1.50184355,2703.9,2703.2,1.56360655]
[1645927740565,0.00548612,2703.7,2703.2,3.41389155]
[1645927740767,0.00548612,2703.7,2703.2,1.850285]
[1645927741566,1.50184355,2703.9,2703.2,1.387285]
[1645927741766,0.0054862,2703.7,2703.2,1.387285]
[1645927742770,1.50184355,2703.9,2703.2,1.387285]
[1645927742970,0.0054862,2703.7,2703.2,1.387285]
[1645927743216,0.0054862,2703.7,2703.3,1.5635733]
[1645927744024,1.00295595,2703.9,2703.3,1.5635733]
[1645927744223,0.00549101,2703.7,2703.2,1.387285]
[1645927744623,0.00549101,2703.7,2703.3,1.10057616]
[1645927745223,1.00295595,2703.9,2703.3,1.10057616]
[1645927745423,0.00549101,2703.7,2703.3,1.10057616]
[1645927746023,0.00549101,2703.7,2703.1,0.9251331]
[1645927746427,12.93235595,2703.9,2703.1,0.9251331]
[1645927746633,12.93235595,2703.9,2703.0,1.66794768]
[1645927746634,0.00549101,2703.7,2703.0,1.66794768]
[1645927746862,11.26,2703.5,2703.0,1.66794768]
[1645927747066,11.6294,2703.3,2703.0,1.66794768]
[1645927747262,12.1624,2703.2,2703.0,1.66794768]
[1645927747468,0.9024,2703.1,2703.0,1.66794768]
[1645927747666,0.9024,2703.1,2703.0,1.20494768]
[1645927748369,12.1624,2703.1,2703.0,1.20494768]
[1645927748568,1.533,2703.1,2703.0,1.20494768]
[1645927749567,1.0,2703.1,2703.0,1.20494768]
[1645927750640,1.0,2703.1,2703.0,0.74194768]
[1645927751928,2.0,2703.3,2703.0,0.74194768]
[1645927752129,2.3,2703.3,2703.0,0.74194768]
[1645927752333,8.49603728,2703.7,2703.0,0.74194768]
[1645927752529,8.34471919,2703.7,2703.0,2.59233478]
[1645927752729,8.35020962,2703.7,2703.0,2.59233478]
[1645927753530,8.34471919,2703.7,2703.0,2.59233478]
[1645927753931,8.35020995,2703.7,2703.0,2.59233478]
[1645927754766,8.34471919,2703.7,2703.0,2.59233478]
[1645927754966,8.35020995,2703.7,2703.0,2.59233478]
[1645927755167,8.35020995,2703.7,2703.0,0.74194768]
[1645927755970,0.02730963,2703.1,2703.0,0.74194768]
[1645927759041,0.02730963,2703.1,2703.0,1.11134768]
[1645927759243,0.00522377,2703.7,2703.1,0.02853261]
[1645927759547,0.00295595,2703.9,2703.1,0.02853261]
[1645927759945,0.00522377,2703.7,2703.1,0.02853261]
[1645927760542,0.00522377,2703.7,2703.1,1.32294101]
[1645927760744,0.00295595,2704.1,2703.2,2.2194428]
[1645927761145,0.00522432,2703.7,2703.2,6.0194428]
[1645927761343,0.00522432,2703.7,2703.2,3.5194428]
[1645927761544,0.00522432,2703.7,2703.3,1.29443]
[1645927761743,0.00522432,2703.7,2703.3,0.92503]
[1645927761990,0.00295595,2704.1,2703.3,1.8501574]
[1645927762197,2.08487241,2704.2,2703.3,1.8501574]
[1645927762389,0.0052775,2703.7,2703.3,1.8501574]
[1645927763291,0.92181646,2704.1,2703.3,1.8501574]
[1645927763491,0.0052775,2703.7,2703.3,1.8501574]
[1645927764292,0.0052775,2703.7,2703.4,3.8694]
[1645927764490,0.92477241,2704.2,2703.4,3.8694]
[1645927764491,0.00295595,2704.2,2703.4,4.8694]
[1645927764696,0.16744434,2704.7,2703.6,0.3694]
[1645927764697,0.0052775,2703.7,2703.6,0.3694]
[1645927764893,0.0052775,2703.7,2703.6,1.93262561]
[1645927765296,0.0052775,2703.7,2703.6,1.56322561]
[1645927765495,0.0052775,2703.7,2703.6,3.41291741]
[1645927765713,0.00295595,2704.6,2703.7,2.1498089]
[1645927765912,0.02157238,2704.3,2703.8,1.56322561]
[1645927766516,0.02157238,2704.3,2703.8,2.48813011]
[1645927766713,1.07267241,2704.7,2703.9,1.56322561]
[1645927767116,0.00434849,2704.2,2703.9,1.56322561]
[1645927767928,0.00434849,2704.2,2703.9,1.93262561]
[1645927768119,0.00434849,2704.2,2704.0,1.56322561]
[1645927768520,0.00434849,2704.2,2704.1,0.9248]
[1645927769378,0.00295595,2704.8,2704.2,1.8495938]
[1645927769574,0.005137,2704.3,2704.2,1.8495938]
[1645927770375,0.00295595,2704.8,2704.2,1.8495938]
[1645927770574,0.00295595,2705.0,2704.2,1.8495938]
[1645927770773,0.00513696,2704.4,2704.2,1.8495938]
[1645927771677,0.00295595,2705.0,2704.2,1.8495938]
[1645927771874,0.00513694,2704.4,2704.3,1.56304768]
[1645927772074,0.00513694,2704.4,2704.3,1.93244768]
[1645927772296,0.00513694,2704.4,2704.3,5.43244768]
[1645927772675,0.00513694,2704.4,2704.3,6.43244768]
[1645927772875,0.00295595,2705.3,2704.5,0.9245207]
[1645927773115,0.01777926,2704.9,2704.7,1.42443284]
[1645927773317,0.01777926,2704.9,2704.5,4.4100207]
[1645927774123,1.06951646,2705.7,2705.0,0.9245733]
[1645927774124,0.00295595,2705.6,2705.0,0.9245733]
[1645927774322,1.06951646,2705.7,2705.0,0.9245733]
[1645927774323,0.0219774,2705.2,2705.0,0.9245733]
[1645927775219,0.15065595,2705.7,2705.0,0.9245733]
[1645927775518,0.00549502,2705.2,2705.0,0.9245733]
[1645927776521,0.00295595,2705.7,2705.0,1.8490733]
[1645927776720,0.00549502,2705.2,2705.0,1.8490733]
[1645927777580,8.96783496,2705.8,2705.0,1.8490733]
[1645927777771,8.75905595,2705.8,2705.2,0.924485]
[1645927777971,0.02197678,2705.6,2705.2,0.924485]
[1645927778769,0.30295595,2705.8,2705.2,0.924485]
[1645927779270,0.0054949,2705.5,2705.2,0.924485]
[1645927780078,0.00295595,2705.8,2705.2,0.924485]
[1645927780273,0.00549492,2705.5,2705.2,0.924485]
[1645927781614,0.00549492,2705.5,2705.1,1.8489699]
[1645927781814,0.00549492,2705.5,2705.1,1.84813782]
[1645927782415,0.00295595,2705.8,2705.1,1.84813782]
[1645927782621,0.00537662,2705.4,2705.1,1.84813782]
[1645927783620,1.24240811,2705.7,2705.1,1.84813782]
[1645927784020,0.00537664,2705.4,2705.1,1.84813782]
[1645927784979,1.7213455,2705.7,2705.1,1.84813782]
[1645927785184,0.00537664,2705.4,2705.1,1.84813782]
[1645927785383,1.06881193,2705.2,2705.1,1.84813782]
[1645927785982,0.00295595,2705.6,2705.1,1.84813782]
[1645927786181,2.04703672,2705.7,2705.1,1.84813782]
[1645927786486,0.005495,2705.3,2705.1,1.84813782]
[1645927787385,0.00295595,2705.6,2705.1,1.84813782]
[1645927787584,0.00549498,2705.3,2705.1,1.84813782]
[1645927788229,0.00549498,2705.3,2705.0,0.924457]
[1645927788427,0.3694,2705.3,2705.0,0.924457]
[1645927788830,0.3694,2705.3,2704.8,0.9247116]
[1645927788831,0.37489498,2705.3,2704.8,0.9247116]
[1645927789040,0.37785093,2705.3,2704.8,0.9247116]
[1645927789236,1.21527338,2705.0,2704.8,0.9247116]
[1645927789441,1.58467338,2705.0,2704.8,0.9247116]
[1645927789642,1.21527338,2705.0,2704.8,0.9247116]
[1645927790040,0.0054951,2705.0,2704.8,0.9247116]
[1645927790843,0.00295595,2705.3,2704.8,0.9247116]
[1645927791041,0.00509766,2705.0,2704.8,0.9247116]
[1645927792064,1.16999891,2705.2,2704.8,0.9247116]
[1645927792264,0.00509766,2705.0,2704.8,0.9247116]
[1645927793267,1.16999891,2705.2,2704.8,0.9247116]
[1645927793468,0.00509766,2705.0,2704.8,0.9247116]
[1645927794472,1.16999891,2705.2,2704.8,0.9247116]
[1645927794671,0.0054951,2705.0,2704.8,0.9247116]
[1645927795731,0.00295595,2705.3,2704.8,0.9247116]
[1645927795929,0.0054951,2705.0,2704.8,0.9247116]
[1645927796127,1.08496628,2705.0,2704.8,0.9247116]
[1645927796730,3.5,2704.9,2704.8,0.9247116]
[1645927797032,3.5,2704.9,2704.5,0.9247934]
[1645927797033,3.8694,2704.9,2704.5,0.9247934]
[1645927797233,3.8694,2704.9,2704.1,5.0253241]
[1645927797234,15.4294,2704.9,2704.1,5.0253241]
[1645927797534,16.15902995,2704.9,2703.9,2.7693]
[1645927797931,1.04007476,2704.3,2703.9,2.7693]
[1645927798133,1.04007476,2704.3,2703.8,0.04822612]
[1645927798435,0.00549529,2704.5,2703.8,0.04822612]
[1645927798631,0.00549529,2704.5,2704.0,1.8497592]
[1645927799465,1.4201354,2704.3,2704.0,1.8497592]
[1645927799666,0.00549535,2704.4,2704.0,1.8497592]
[1645927800464,4.52962995,2704.9,2704.0,1.8497592]
[1645927800465,5.04692995,2704.9,2704.0,1.8497592]
[1645927800668,1.17374241,2704.3,2704.0,1.8497592]
[1645927801665,4.70535595,2704.9,2704.0,1.8497592]
[1645927801666,4.85325595,2704.9,2704.0,1.8497592]
[1645927801865,0.84586365,2704.9,2704.0,1.8497592]
[1645927802169,0.00537965,2704.3,2704.1,0.9248]
[1645927802368,0.00537965,2704.3,2704.1,1.2942]
[1645927802767,0.00295595,2704.9,2704.1,1.2942]
[1645927802970,0.00295595,2704.9,2704.2,1.93226392]
[1645927803233,0.00295595,2704.9,2704.2,0.3694]
[1645927803234,0.00537963,2704.3,2704.2,0.3694]
[1645927803829,0.0215153,2704.7,2704.5,0.92467]
[1645927804029,0.00295595,2704.9,2704.5,0.92467]
[1645927804229,0.00295595,2705.2,2704.5,1.29407]
[1645927804433,0.00295595,2705.3,2704.5,1.29407]
[1645927805031,0.45065595,2705.5,2704.5,1.29407]
[1645927805231,0.15065595,2705.5,2704.5,1.59407]
[1645927805432,1.17221965,2705.5,2704.5,1.59407]
[1645927805633,0.00444321,2705.0,2704.7,0.9246861]
[1645927806432,3.51777016,2705.4,2704.7,0.9246861]
[1645927806433,0.00295595,2705.3,2704.7,0.9246861]
[1645927806632,1.02451965,2705.5,2704.7,0.9246861]
[1645927806866,0.00444321,2705.0,2704.7,0.9246861]
[1645927807674,0.00295595,2705.3,2704.7,0.9246861]
[1645927807974,0.00549511,2705.0,2704.7,0.9246861]
[1645927808875,0.92477241,2705.3,2704.7,0.9246861]
[1645927809169,3.5,2705.4,2704.7,0.9246861]
[1645927809170,0.00549511,2705.0,2704.7,0.9246861]
[1645927809977,1.41705029,2705.2,2704.7,0.9246861]
[1645927810374,0.00549511,2705.0,2704.8,0.04440245]
[1645927811215,0.00295595,2705.3,2704.8,0.04440245]
[1645927811420,0.00549509,2705.0,2704.8,0.04440245]
[1645927812424,0.00295595,2705.3,2704.8,0.04440245]
[1645927812623,0.92477241,2705.5,2705.0,0.9245565]
[1645927812822,0.02196797,2705.4,2705.0,0.9245565]
[1645927813724,0.02196797,2705.4,2705.1,1.56256576]
[1645927813925,0.00548789,2705.3,2705.1,1.56256576]
[1645927814770,0.0249042,2705.7,2705.1,1.56256576]
[1645927814771,0.00295595,2705.7,2705.1,1.56256576]
[1645927814969,0.92181646,2705.8,2705.2,0.9245251]
[1645927814970,0.92477241,2705.8,2705.2,0.9245251]
[1645927815169,0.00548789,2705.3,2705.2,0.9245251]
[1645927815675,0.00548789,2705.3,2705.2,2.48701271]
[1645927816073,0.00295595,2705.8,2705.2,2.78701271]
[1645927816272,0.00549014,2705.4,2705.3,1.56248761]
[1645927816673,0.00549014,2705.4,2705.2,3.1489651]
[1645927816875,0.00549014,2705.4,2705.3,1.56243838]
[1645927817074,0.00549014,2705.4,2705.3,3.30608923]
[1645927817274,0.92477241,2706.0,2705.3,3.30608923]
[1645927817275,0.00295595,2706.0,2705.3,4.45378923]
[1645927817473,8.28181646,2706.2,2705.6,0.9242474]
[1645927817775,8.28181646,2706.2,2705.6,2.9379874]
[1645927817776,0.02195713,2705.9,2705.6,2.9379874]
[1645927818231,0.02195713,2705.9,2705.6,3.9379874]
[1645927818430,0.92477241,2706.3,2705.6,3.9379874]
[1645927818629,0.92181646,2706.4,2705.6,3.9379874]
[1645927818827,0.00548995,2705.9,2705.6,3.9379874]
[1645927819229,0.00548995,2705.9,2705.6,4.3073874]
[1645927819435,0.00548995,2705.9,2705.8,0.3694]
[1645927819635,0.00295595,2706.3,2705.8,3.8694]
[1645927819837,0.00295595,2706.5,2705.8,3.8694]
[1645927820037,0.0219565,2706.3,2706.0,0.92404]
[1645927820235,0.0219565,2706.3,2706.0,1.29344]
[1645927820441,0.0219565,2706.3,2706.0,0.92404]
[1645927820836,0.92477241,2706.7,2706.0,0.92404]
[1645927821136,0.92477241,2706.7,2706.2,0.9240771]
[1645927821338,0.92181646,2706.7,2706.3,0.92408]
[1645927821538,0.92181646,2706.7,2706.3,2.772237]
[1645927821539,1.43143019,2706.4,2706.3,2.772237]
[1645927821738,1.43143019,2706.4,2705.9,1.84807]
[1645927821986,2.72264665,2706.4,2705.7,3.0709]
[1645927822185,2.72264665,2706.4,2705.3,0.04670715]
[1645927822384,0.3694,2706.2,2705.3,0.04670715]
[1645927822584,1.13112327,2705.9,2705.3,0.04670715]
[1645927823788,0.3694,2705.7,2705.3,0.04670715]
[1645927824094,0.3694,2705.7,2704.4,0.15323858]
[1645927824095,0.3694,2705.5,2704.4,0.15323858]
[1645927824284,2.0,2705.3,2704.5,1.56273161]
[1645927824484,0.3694,2705.1,2704.5,1.56273161]
[1645927824685,1.40167282,2705.0,2704.4,0.00553858]
[1645927825085,0.3,2705.0,2704.4,0.00553858]
[1645927825386,1.0,2705.0,2704.4,0.00553858]
[1645927825823,1.3,2705.0,2704.4,0.00553858]
[1645927826026,0.00444098,2704.8,2704.4,0.00553858]
[1645927826229,0.00444098,2704.8,2704.5,1.55743105]
[1645927826429,0.00444098,2704.8,2704.4,0.00553858]
[1645927826827,1.45636014,2705.0,2704.4,0.00553858]
[1645927827035,0.45636014,2705.0,2704.4,0.00553858]
[1645927827233,0.00549702,2704.7,2704.4,0.00553858]
[1645927827430,1.29383837,2704.7,2704.4,0.00553858]
[1645927827637,1.29383837,2704.7,2704.5,1.5572959]
[1645927828030,0.32198479,2705.1,2704.5,1.5572959]
[1645927828031,0.3,2705.1,2704.5,1.5572959]
[1645927828432,0.00549702,2704.7,2704.5,1.5572959]
[1645927828831,0.00549702,2704.7,2704.4,0.00553858]
[1645927829033,1.20507023,2704.6,2704.4,0.00553858]
[1645927829234,0.3694,2705.2,2704.5,1.55734906]
[1645927829775,0.00510007,2704.7,2704.6,0.9247581]
[1645927830573,1.20739712,2704.8,2704.6,0.9247581]
[1645927830773,1.21249715,2704.8,2704.6,0.9247581]
[1645927831471,0.00510003,2704.8,2704.6,0.9247581]
[1645927832072,0.00510001,2704.8,2704.6,0.9247581]
[1645927832675,1.18104647,2704.7,2704.6,0.9247581]
[1645927833132,0.00510001,2704.8,2704.6,0.9247581]
[1645927834132,1.23553969,2704.7,2704.6,0.9247581]
[1645927835033,0.13229056,2704.8,2704.6,0.9247581]
[1645927835432,0.12716409,2704.8,2704.6,0.9247581]
[1645927835634,0.13229058,2704.8,2704.6,0.9247581]
[1645927836237,1.26537577,2704.8,2704.6,0.9247581]
[1645927836437,1.26024928,2704.8,2704.6,0.9247581]
[1645927836877,1.26537575,2704.8,2704.6,0.9247581]
[1645927837666,1.26024928,2704.8,2704.6,0.9247581]
[1645927837868,1.26024928,2704.8,2704.6,0.4618581]
[1645927838071,1.26537399,2704.8,2704.6,0.4618581]
[1645927839274,3.5,2704.7,2704.4,0.00553858]
[1645927839673,1.26537399,2704.8,2704.4,0.00553858]
[1645927839879,1.26537399,2704.8,2704.4,0.93031128]
[1645927840076,1.26024928,2704.8,2704.4,0.93031128]
[1645927840714,0.00512475,2704.7,2704.4,0.93031128]
[1645927840914,0.00512475,2704.7,2704.4,0.46741128]
[1645927841114,0.00512475,2704.7,2704.4,0.00553858]
[1645927841318,1.26024928,2704.8,2704.4,0.00553858]
[1645927841614,0.00512489,2704.7,2704.4,0.00553858]
[1645927842722,0.00512489,2704.7,2703.8,4.74735462]
[1645927842723,0.18551018,2703.9,2703.8,2.7742685]
[1645927842921,0.18551018,2703.9,2703.8,1.54536107]
[1645927843121,0.26367019,2703.9,2703.8,1.54536107]
[1645927843418,0.26367019,2703.9,2703.5,0.00355982]
[1645927843620,0.07816001,2703.8,2703.5,0.00355982]
[1645927843918,0.07816001,2703.8,2703.1,0.02853261]
[1645927843919,1.2415371,2703.7,2703.4,1.06860558]
[1645927844120,1.2415371,2703.7,2703.5,0.00355982]
[1645927844978,1.2415371,2703.7,2703.1,0.02853261]
[1645927845378,1.2415371,2703.7,2703.5,0.00320391]
[1645927846184,1.2415371,2703.7,2703.1,1.87883251]
[1645927846577,1.2415371,2703.7,2703.5,0.00320391]
[1645927846777,1.2415371,2703.7,2703.1,1.41913642]
[1645927847180,1.19840345,2703.2,2703.1,0.02853261]
[1645927847377,8.4336,2703.8,2703.1,0.02853261]
[1645927847779,8.7336,2703.8,2703.1,0.02853261]
[1645927848127,8.95250684,2703.8,2703.1,0.02853261]
[1645927848731,8.95250684,2703.8,2703.3,0.00286878]
[1645927849330,9.32190684,2703.8,2703.3,0.00286878]
[1645927849628,0.1479,2703.7,2703.3,0.00286878]
[1645927849828,0.1479,2703.7,2702.9,1.77896211]
[1645927850028,0.1479,2703.7,2703.4,0.00286872]
[1645927850236,1.0,2703.5,2703.4,0.00286872]
[1645927850431,1.5173,2703.5,2703.4,0.00286872]
[1645927850630,1.4479,2703.5,2703.4,0.00286872]
[1645927850833,1.63537396,2703.5,2703.4,0.00286872]
[1645927851130,1.63537396,2703.5,2702.9,0.925273]
[1645927851332,1.63537396,2703.5,2703.3,0.00286878]
[1645927852174,1.63537396,2703.5,2702.9,0.925273]
[1645927852371,1.48747396,2703.5,2703.3,0.00290994]
[1645927853175,1.85687396,2703.5,2703.3,0.00290994]
[1645927853375,1.0,2703.4,2702.9,0.925273]
[1645927853579,1.0,2703.4,2703.3,0.00290994]
[1645927854179,12.26,2703.4,2703.3,0.00290994]
[1645927854577,1.3694,2703.3,2702.4,1.98888097]
[1645927854779,1.6694,2703.3,2702.4,1.98888097]
[1645927854979,1.87695131,2703.3,2703.2,0.00290999]
[1645927855843,1.87695131,2703.3,2702.4,1.98888097]
[1645927856044,1.32480771,2702.9,2702.4,1.98888097]
[1645927856248,0.18570236,2703.0,2702.4,1.98888097]
[1645927856447,1.45018335,2703.3,2702.4,1.98888097]
[1645927857249,1.45018335,2703.3,2702.7,0.00087589]
[1645927857448,1.3,2703.3,2702.7,0.00087589]
[1645927857652,0.20155452,2703.1,2702.7,0.00087589]
[1645927857851,1.49632616,2703.3,2702.7,0.00087589]
[1645927858053,1.49632616,2703.3,2702.4,1.98888097]
[1645927858450,1.17713822,2703.1,2702.8,0.00087587]
[1645927859377,1.17713822,2703.1,2702.4,1.98888097]
[1645927859577,1.17713822,2703.1,2702.8,0.00335618]
[1645927860079,2.1115,2703.4,2702.8,0.00335618]
[1645927860280,2.32254146,2703.4,2702.8,0.00335618]
[1645927860480,2.32254146,2703.4,2702.4,1.98888097]
[1645927860687,1.1306,2703.4,2702.7,1.2947405]
[1645927860886,0.03346741,2703.2,2703.0,0.00335599]
[1645927861081,0.03246741,2703.2,2703.0,0.00335599]
[1645927861294,0.03246741,2703.2,2703.0,1.44122271]
[1645927861482,0.03246741,2703.2,2703.0,0.37275599]
[1645927861683,0.03246741,2703.2,2703.0,0.3694]
[1645927861883,0.03246741,2703.2,2703.0,0.3413]
[1645927862185,0.03246741,2703.2,2703.0,0.34465599]
[1645927862582,0.03246741,2703.2,2703.1,1.85866097]
[1645927862985,0.18551018,2703.9,2703.7,0.06359615]
[1645927863423,0.1904683,2703.9,2703.7,0.06359615]
[1645927864430,0.19046915,2703.9,2703.7,0.06359615]
[1645927864629,0.19046915,2703.9,2703.7,1.91324825]
[1645927864828,0.19046915,2703.9,2703.7,2.36114825]
[1645927865033,2.01982986,2704.8,2703.9,0.3413]
[1645927865231,2.01982986,2704.8,2704.0,1.51767912]
[1645927865232,0.01982986,2704.8,2704.0,1.51767912]
[1645927865531,1.19945595,2705.1,2704.1,0.3413]
[1645927865733,0.07814158,2705.0,2704.2,0.1477]